[Event "Ramat Gan Masters-A Winter 2023"]
[Site "Ramat Gan/ISR"]
[Date "2023.02.13"]
[Round "4.7"]
[White "Kochavi, Dana"]
[Black "Tashkinova, Sofiia"]
[Result "0-1"]
[Annotator "TA"]
[ECO "C78"]
[WhiteElo "1956"]
[BlackElo "1928"]
[PlyCount "62"]
[EventDate "2023.01.17"]
[EventType "swiss"]
[SourceTitle "playchess.com"]
[Source "ChessBase"]
[SourceQuality "1"]
[TimeControl "5400+30"]

{[%evp 15,62,13,9,9,15,-29,-23,-38,-39,-84,-39,-32,-34,-63,-62,-55,0,0,31,-111,-94,-114,-116,-121,-108,-276,-275,-581,-334,-317,-327,-302,-305,-290,-268,-1235,-842,-29987,-29988,-29988,-29989,-29989,-29990,-29993,-29994,-29994,-29995,-29995,-29993]} 1. e4 {[%emt 0:00:39]} e5 {[%emt 0:00:13]} 2. Nf3 {[%emt 0:00:11]} Nc6 {[%emt 0:00:07]} 3. Bb5 {[%emt 0:00:07]} a6 {[%emt 0:00:15]} 4. Ba4 {[%emt 0:00:05]} Nf6 {[%emt 0:00:10]} 5. d3 {[%emt 0:00:21][%cal Bd2d3,Bd3d4][%mdl 32]} b5 {[%emt 0:00:24]} 6. Bb3 {[%emt 0:00:05]} Bc5 {[%emt 0:00:34]} 7. O-O {[%emt 0:00:21]} d6 {[%emt 0:00:46]} 8. c3 {[%emt 0:02:15]} h6 $1 {[%emt 0:02:52][%mdl 4] outshines the older 8...0-0.} 9. d4 {[%emt 0:06:05] C78: Ruy Lopez: Archangelsk and Möller Defences.} Bb6 {[%emt 0:05:01]} 10. h3 {[%emt 0:04:53]} O-O {[%emt 0:03:54]} (10... Nxe4 $2 11. Bd5 Bb7 12. Bxe4 $18) 11. d5 {[%emt 1:20:58] Black has an edge.} Ne7 {[%emt 0:00:52] [#]} 12. Qe2 $146 {[%emt 0:00:00]} ({Predecessor:} 12. Re1 Ng6 13. Nh2 Bd7 14. Be3 Bxe3 15. Rxe3 Nf4 16. Nd2 Nh7 17. Ndf1 f5 18. exf5 Bxf5 {½-½ Petrenko,S (2183)-Zimina,O (2351) EU-ch (Women) 15th 2014 (3)}) 12... Nh7 {[%emt 0:02:16]} 13. a4 {[%emt 0:00:00]} Rb8 {[%emt 0:02:08]} 14. axb5 {[%emt 0:00:00]} axb5 {[%emt 0:00:12]} 15. Na3 {[%emt 0:00:00]} Bd7 {[%emt 0:04:26]} (15... Kh8 $1 $15) 16. Nc2 $11 {[%emt 0:00:00]} f5 {[%emt 0:02:31]} 17. exf5 {[%emt 0:00:00]} (17. Nxe5 $1 $14 {keeps the upper hand.} dxe5 18. d6+ Kh8 19. dxe7 Qxe7 20. exf5) 17... Nxf5 $17 {[%emt 0:01:47] White must now prevent ...Ng3.} 18. Ne3 {[%emt 0:00:00] [#]} Nh4 $1 {[%emt 0:02:17]} 19. Nxh4 {[%emt 0:00:00]} Qxh4 {[%emt 0:00:30]} 20. Bc2 $2 {[%emt 0:00:00] This move loses the game for White.} (20. Bd1 $17) 20... Ng5 $19 {[%emt 0:04:10][%cal Of8f3] And now ...Rf3! would win.} 21. Ng4 $2 {[%emt 0:00:00]} (21. f3 e4 22. Qf2 Nxh3+ 23. gxh3 Qg5+ 24. Qg2 (24. Kh1 $2 Rxf3 $19) 24... Bxe3+ 25. Kh2 Bxc1 26. Raxc1) 21... h5 {[%emt 0:05:37] Strongly threatening ...Nxh3+.} (21... Bxg4 22. Qxg4 (22. hxg4 $2 Nh3+ 23. gxh3 Qg3+ 24. Kh1 Qxh3+ 25. Kg1 Qg3+ 26. Kh1 Qh3+ 27. Kg1 Qg3+ 28. Kh1 Bxf2 $19) 22... Bxf2+ 23. Kh1 $17) 22. Bxg5 {[%emt 0:00:00]} Qxg5 {[%emt 0:00:08]} 23. Ne3 {[%emt 0:00:00]} Bxh3 {[%emt 0:02:11] aiming for ...Rf4.} 24. Qd3 {[%emt 0:00:00]} Rf6 {[%emt 0:03:41] Wards off Qg6. Threatens to win with ...Bxe3.} (24... Bxe3 $2 25. Qh7+ Kf7 26. Bg6+ (26. fxe3+ Ke7 $15) 26... Ke7 27. Qxg7+ (27. fxe3 $2 Qxg2#) 27... Kd8 28. Qxf8+ Kd7 29. Qf3 (29. Qxb8 $2 Qxg2#) 29... Qxg2+ 30. Qxg2 $18) 25. Qxb5 $2 {[%emt 0:00:00]} (25. Qh7+ Kf7 26. Kh1) 25... Rbf8 {[%emt 0:03:10]} ({Weaker is} 25... Bxe3 26. Qxb8+ Rf8 27. Qxf8+ Kxf8 28. fxe3+ Ke7 29. Rf2 $11) 26. Kh1 {[%emt 0:00:00]} Bxe3 {[%emt 0:05:33][%csl Gh3][%cal Rg5g2] Black mates.} ({Not} 26... Rxf2 27. Rxf2 Rxf2 28. gxh3 $11) 27. gxh3 {[%emt 0:00:00] [#]} Rf3 $1 {[%emt 0:00:32][%cal Rf3h3]} 28. Qd7 {[%emt 0:00:00]} Qh4 {[%emt 0:01:12]} 29. Kg2 {[%emt 0:00:00]} Rxf2+ {[%emt 0:00:28]} 30. Rxf2 {[%emt 0:00:00]} Qxf2+ {[%emt 0:00:14]} 31. Kh1 {[%emt 0:00:00]} Qxc2 {[%emt 0:00:19] Weighted Error Value: White=1.03/Black=0.42} 0-1

[Event "Ramat Gan Masters-A Winter 2023"]
[Site "Ramat Gan/ISR"]
[Date "2023.02.13"]
[Round "4.8"]
[White "Lapushnian, Maya"]
[Black "Duchan, Yoav"]
[Result "0-1"]
[Annotator "TA"]
[ECO "B27"]
[WhiteElo "1707"]
[BlackElo "1945"]
[PlyCount "52"]
[EventDate "2023.01.17"]
[EventType "swiss"]
[SourceTitle "playchess.com"]
[Source "ChessBase"]
[SourceQuality "1"]
[TimeControl "5400+30"]

{[%evp 14,52,12,6,17,13,28,6,29,16,15,7,27,24,34,36,70,28,88,92,155,157,169,162,174,11,73,91,70,0,12,-108,-106,-102,-103,-313,-295,-487,-493,-512,-385]} 1. e4 {[%emt 0:00:02]} c5 {[%emt 0:00:00]} 2. Nc3 {[%emt 0:00:11]} g6 {[%emt 0:00:05]} 3. d4 {[%emt 0:00:21]} cxd4 {[%emt 0:01:00]} 4. Qxd4 {[%emt 0:00:17]} Nf6 {[%emt 0:01:40]} 5. Nf3 {[%emt 0:00:12]} Nc6 {[%emt 0:00:35]} 6. Qa4 {[%emt 0:00:08]} d6 {[%emt 0:01:18]} 7. e5 {[%emt 0:00:42]} dxe5 {[%emt 0:02:41]} 8. Nxe5 {[%emt 0:00:13][%cal Of1c4]} Bd7 {[%emt 0:02:49] B27: Sicilian: 2 Nf3, unusual Black 2nd moves.} 9. Nxd7 {[%emt 0:02:47]} Qxd7 {[%emt 0:00:10]} 10. Be2 {[%emt 0:08:15]} Bg7 {[%emt 0:02:46] The position is equal.} 11. Be3 {[%emt 0:00:26]} O-O {[%emt 0:01:46]} 12. Rd1 {[%emt 0:00:35]} Qe6 {[%emt 0:03:00]} 13. O-O {[%emt 0:03:46] [#]} Qc8 $146 {[%emt 0:03:05]} ({Predecessor:} 13... a6 14. h3 b5 15. Qb3 Qe5 16. Bf3 Rac8 17. Bxc6 Rxc6 18. Ne2 Rc4 19. c3 Qc7 {1-0 Al Tamimi,H (2186)-Kim,C (1846) Olympiad-41 Tromsoe 2014 (1.4)}) 14. h3 {[%emt 0:04:12]} Kh8 {[%emt 0:01:00]} 15. Qh4 {[%emt 0:08:18]} e5 {[%emt 0:05:09]} (15... Kg8 $11) 16. Nb5 $16 {[%emt 0:26:19]} Nd7 {[%emt 0:07:20]} ({Better is} 16... Ne8) 17. Nd6 {[%emt 0:04:40] Black is weak on the light squares} Qc7 {[%emt 0:01:28]} 18. Bc4 {[%emt 0:14:48]} Nf6 {[%emt 0:14:02]} 19. Bh6 $2 {[%emt 0:10:34] A strong pair of Bishops.} (19. Nb5 $18 Qe7 20. Bg5) 19... Ne8 {[%emt 0:06:22]} (19... Nd4 $11 {keeps the balance.} 20. f4 (20. Bxg7+ Kxg7 21. Rxd4 exd4 $11) 20... Qxd6 21. fxe5 Ne2+ 22. Bxe2 Qxe5) 20. Nb5 {[%emt 0:01:37]} Qc8 {[%emt 0:02:07]} 21. Nd6 {[%emt 0:02:33]} (21. Rfe1 $14) 21... Nxd6 (21... Qc7 $5 {[%cal Re8d6]} 22. Nb5 Qc8 $16) 22. Rxd6 {[%emt 0:01:23]} (22. Bxg7+ $11 {was the only way to keep the balance.} Kxg7 23. Rxd6) 22... Bxh6 $17 {[%emt 0:04:00]} 23. Qxh6 {[%emt 0:09:41] [#]} Ne7 $1 {[%emt 0:01:15]} 24. Bd3 {[%emt 0:00:00] [#]} (24. Qg5 $17 {might work better.} Nf5 25. Bb3 (25. Qf6+ Kg8 $17) 25... Nxd6 26. Qxe5+ Kg8 27. Qxd6) 24... Qc7 $1 $19 {[%emt 0:00:27]} 25. Rf6 {[%emt 0:00:00]} (25. Bxg6 fxg6 26. Qd2) 25... Ng8 $1 {[%emt 0:00:45][%csl LRf6,LRh6]} 26. Qh4 {[%emt 0:00:00]} Qe7 {[%emt 0:00:59][%mdl 64] Pin. Quite a comeback for Black.   Weighted Error Value: White=0.51/Black=0.17 (very precise)} ({Not} 26... Nxf6 $2 27. Qxf6+ Kg8 28. Re1 $19) 0-1

[Event "Ramat Gan Masters-A Winter 2023"]
[Site "Ramat Gan/ISR"]
[Date "2023.02.13"]
[Round "4.9"]
[White "Goz, Shachar"]
[Black "Malachi, Avraham"]
[Result "0-1"]
[Annotator "TA"]
[ECO "C28"]
[WhiteElo "1623"]
[BlackElo "1975"]
[PlyCount "52"]
[EventDate "2023.01.17"]
[EventType "swiss"]
[SourceTitle "playchess.com"]
[Source "ChessBase"]
[SourceQuality "1"]
[TimeControl "5400+30"]

{[%evp 9,52,-5,6,6,8,11,16,-31,0,0,0,-137,-135,-263,-270,-264,-269,-265,-271,-282,-222,-473,-475,-403,-340,-332,-336,-322,-325,-328,-316,-396,-322,-486,-485,-870,-863,-940,-937,-1053,-1064,-979,-967,-1097,-1096]} 1. e4 {[%emt 0:00:06]} e5 {[%emt 0:02:02]} 2. Bc4 {[%emt 0:00:04]} Bc5 {[%emt 0:00:05]} 3. d3 {[%emt 0:00:04]} Nf6 {[%emt 0:01:13]} 4. Nc3 {[%emt 0:00:05]} Nc6 {[%emt 0:01:03][%cal Bb8c6,Bc6d4,Bd4e2][%mdl 32]} 5. f4 {[%emt 0:01:00]} exf4 {[%emt 0:01:00]} 6. Bxf4 {[%emt 0:00:06] C28: Vienna Game: 2...Nf6 3 Bc4 Nc6.} O-O {[%emt 0:01:25]} 7. Nf3 {[%emt 0:00:07]} d6 {[%emt 0:01:03]} 8. Na4 {[%emt 0:00:44]} (8. Qd2 $11) 8... Bd4 {[%emt 0:03:53] [#]} (8... d5 $5 {[%cal Rc5b4]} 9. Nxc5 dxc4 $11) 9. Nxd4 $146 {[%emt 0:02:39]} ({Predecessor:} 9. c3 Nh5 10. Nxd4 Nxf4 11. O-O Nxd4 12. Rxf4 Ne6 13. Bxe6 fxe6 14. Rxf8+ Qxf8 15. c4 {0-1 Ramirez Aguado,A (1992)-Gomez Carreno,M (2070) ESP-ch U18 Salobrena 2020 (4)}) 9... Nxd4 {[%emt 0:00:08]} 10. O-O {[%emt 0:03:33]} (10. Nc3 $11 {keeps the balance.}) 10... b5 $17 {[%emt 0:02:24][%cal Ob5c4]} 11. Be3 {[%emt 0:02:14]} (11. Bg5 $17 bxa4 12. c3) 11... Bg4 $19 {[%emt 0:02:31]} 12. Qd2 {[%emt 0:00:05]} Ne2+ {[%emt 0:00:43]} 13. Kh1 {[%emt 0:00:06]} bxc4 {[%emt 0:00:45]} (13... bxa4 14. Bg5 $17) 14. Rae1 {[%emt 0:03:19]} Qd7 {[%emt 0:07:48]} 15. Rxe2 $2 {[%emt 0:10:26] [#]} (15. b3 {might work better.}) 15... Bxe2 {[%emt 0:03:07]} (15... Qxa4 $2 {loses.} 16. Ref2 $19) 16. Qxe2 {[%emt 0:00:01]} cxd3 {[%emt 0:03:40]} 17. Qxd3 {[%emt 0:00:11]} Qxa4 {[%emt 1:06:10]} 18. Rxf6 {[%emt 0:00:11]} Rae8 {[%emt 0:00:00]} ({Not} 18... gxf6 19. Bh6 Qa5 20. Qg3+ $16) 19. Rf4 {[%emt 0:02:36]} Qxa2 {[%emt 0:00:00]} 20. h3 {[%emt 0:00:13]} Qe6 {[%emt 0:00:00][%cal Of7f5]} 21. Rg4 {[%emt 0:00:14]} (21. Bd2 $142) 21... f5 {[%emt 0:00:00] Black is clearly winning.} 22. exf5 {[%emt 0:01:12]} (22. Rf4 $142) 22... Qxe3 {[%emt 0:00:00]} 23. Qc4+ {[%emt 0:00:04]} Rf7 {[%emt 0:00:00] aiming for ...Qf2.} 24. f6 {[%emt 0:00:05]} Qe1+ {[%emt 0:00:00]} 25. Kh2 {[%emt 0:00:09]} Qe5+ {[%emt 0:00:00]} 26. Kh1 {[%emt 0:00:08]} Qxf6 {[%emt 0:00:00] Black took control after the opening.   Weighted Error Value: White=0.99/Black=0.16 (very precise)} 0-1

[Event "Ramat Gan Masters-A Winter 2023"]
[Site "Ramat Gan/ISR"]
[Date "2023.02.13"]
[Round "4.10"]
[White "Hasson Shreger, Shalev"]
[Black "Soybert, Ori"]
[Result "1/2-1/2"]
[Annotator "NA RC COMBH"]
[ECO "B30"]
[WhiteElo "1823"]
[BlackElo "1736"]
[PlyCount "105"]
[EventDate "2023.01.17"]
[EventType "swiss"]
[SourceTitle "playchess.com"]
[Source "ChessBase"]
[SourceQuality "1"]
[TimeControl "5400+30"]

{[%evp 8,100,39,41,32767,32767,78,89,84,83,97,32767,71,32767,32767,0,-4,0,0,0,0,32767,32767,32767,-16,-20,-10,-30,79,-45,-50,-54,-63,-60,32767,32767,32767,32767,18,12,17,0,0,32767,32767,32767,32767,0,32767,0,0,0,25,0,20,-19,-2,-6,0,0,7,0,0,32767,32767,32767,32767,32767,32767,32767,-52,32767,-8,32767,-76,32767,32767,-247,32767,-266,-265,-251,32767,0,32767,32767,32767,32767,41,0,0,0,0,0,0]} 1. e4 {[%emt 0:00:02]} c5 {[%emt 0:00:05]} 2. Nf3 {[%emt 0:00:03]} Nc6 {[%emt 0:00:07]} 3. Bb5 {[%emt 0:00:01]} e5 {[%emt 0:01:12]} 4. O-O {[%emt 0:00:22]} Bd6 {[%emt 0:00:09]} 5. d4 {[%emt 0:00:04]} Nxd4 {[%emt 0:41:56]} 6. Bc4 {[%emt 0:00:02]} Nf6 {[%emt 0:05:45] [#]} (6... Bc7 $11) 7. Ng5 $1 {[%emt 0:00:56]} O-O {[%emt 0:01:07]} 8. c3 {[%emt 0:00:08]} Ne6 {[%emt 0:00:38]} 9. Qxd6 {[%emt 0:00:13]} Nxg5 {[%emt 0:00:19] Remove Defender} 10. Bxg5 {[%emt 0:01:47]} Nxe4 {[%emt 0:00:18]} 11. Bxd8 {[%emt 0:00:54]} (11. Qxe5 $14 Nxg5 12. Qxc5) 11... Nxd6 {[%emt 0:00:08]} 12. Be7 {[%emt 0:00:05]} Nxc4 {[%emt 0:00:08]} 13. Bxf8 {[%emt 0:00:03]} Kxf8 {[%emt 0:00:14]} 14. b3 {[%emt 0:01:03]} Nb6 {[%emt 0:02:07]} 15. c4 {[%emt 0:00:14]} d5 {[%emt 0:03:56]} 16. cxd5 {[%emt 0:00:15]} Nxd5 {[%emt 0:00:02]} 17. Nd2 {[%emt 0:01:10]} Ke7 {[%emt 0:03:50]} (17... f6 $15 {stays ahead.}) 18. Rfe1 {[%emt 0:01:12]} (18. Rae1 $14) 18... f6 {[%emt 0:00:55]} 19. Nf1 {[%emt 0:10:00]} Be6 {[%emt 0:05:13]} 20. Ne3 {[%emt 0:02:07]} Nxe3 {[%emt 0:02:32]} 21. Rxe3 {[%emt 0:00:02]} b5 {[%emt 0:09:52]} 22. Rae1 {[%emt 0:02:41]} Bd5 {[%emt 0:02:08]} 23. Rh3 {[%emt 0:08:20]} h6 {[%emt 0:01:50]} 24. Rg3 {[%emt 0:04:44]} Rg8 {[%emt 0:04:32]} 25. Rd1 {[%emt 0:07:49]} Ke6 {[%emt 0:01:00]} 26. Kf1 {[%emt 0:04:03]} h5 {[%emt 0:05:02]} 27. Rgd3 {[%emt 0:04:31]} Rd8 {[%emt 0:00:49]} 28. Ke1 {[%emt 0:00:50]} Rd7 {[%emt 0:03:46]} 29. f3 {[%emt 0:04:08]} g6 {[%emt 0:01:33]} 30. Rc3 {[%emt 0:04:27]} Kd6 {[%emt 0:01:31]} 31. Kf2 {[%emt 0:03:21]} Kc6 {[%emt 0:01:37]} 32. g4 {[%emt 0:01:33]} h4 {[%emt 0:01:26]} 33. g5 {[%emt 0:01:26]} f5 {[%emt 0:00:14]} 34. Re3 {[%emt 0:05:11]} (34. b4 $5 {[%cal Rc3c5]} Bc4 35. Rxd7 Kxd7 36. a3 $11) 34... Kd6 {[%emt 0:00:56]} 35. Rde1 {[%emt 0:06:58]} e4 {[%emt 0:00:17]} 36. fxe4 {[%emt 0:02:01]} fxe4 {[%emt 0:00:02]} 37. Rh3 {[%emt 0:02:08]} Rf7+ {[%emt 0:00:11]} 38. Ke2 {[%emt 0:00:26]} Rf4 {[%emt 0:00:29]} 39. Rf1 {[%emt 0:02:15] [#]} Rg4 {[%emt 0:00:17]} (39... Rxf1 $1 $17 40. Kxf1 c4) 40. Rf6+ {[%emt 0:00:26]} Ke5 {[%emt 0:00:02]} 41. Rxg6 {[%emt 0:00:15]} Rg2+ {[%emt 0:00:17]} 42. Kf1 {[%emt 0:04:40]} (42. Ke3 $17 {was worth a try.}) 42... Rxa2 {[%emt 0:00:11]} 43. Rg7 {[%emt 0:06:34]} c4 {[%emt 0:00:32]} 44. bxc4 {[%emt 0:01:14]} bxc4 {[%emt 0:00:08]} 45. Rc7 {[%emt 0:05:58]} Kd4 {[%emt 0:02:24]} 46. g6 {[%emt 0:04:22]} e3 {[%emt 0:01:09]} 47. Rd7 {[%emt 0:00:03]} Ra1+ $14 {[%emt 0:00:28]} 48. Ke2 {[%emt 0:00:06]} Ra2+ {[%emt 0:00:25]} 49. Ke1 {[%emt 0:00:33]} Ra1+ {[%emt 0:00:33]} 50. Ke2 {[%emt 0:00:01]} Ra2+ {[%emt 0:00:31]} 51. Ke1 {[%emt 0:02:00]} Ra1+ {[%emt 0:00:35]} 52. Ke2 $11 {[%emt 0:00:01]} Ra2+ {[%emt 0:00:28]} 53. Ke1 {[%emt 0:01:54]} 1/2-1/2

[Event "Ramat Gan Masters-A Winter 2023"]
[Site "Ramat Gan/ISR"]
[Date "2023.02.13"]
[Round "4.11"]
[White "Weber, Yonatan"]
[Black "Shapira, Avner"]
[Result "1-0"]
[Annotator "NA RC COMBH"]
[ECO "A25"]
[WhiteElo "1527"]
[BlackElo "1814"]
[PlyCount "94"]
[EventDate "2023.01.17"]
[EventType "swiss"]
[SourceTitle "playchess.com"]
[Source "ChessBase"]
[SourceQuality "1"]
[TimeControl "5400+30"]

1. c4 {[%emt 0:00:03]} e5 {[%emt 0:00:55]} 2. g3 {[%emt 0:00:07]} d6 {[%emt 0:00:42]} 3. Bg2 {[%emt 0:00:13]} g6 {[%emt 0:01:06]} 4. Nc3 {[%emt 0:00:14]} Bg7 {[%emt 0:00:10]} 5. Nf3 {[%emt 0:00:08]} f5 {[%emt 0:05:25]} 6. O-O {[%emt 0:00:21]} Nc6 {[%emt 0:00:33]} 7. Rb1 {[%emt 0:00:43]} a5 {[%emt 0:02:40]} 8. a3 {[%emt 0:00:33]} Nf6 {[%emt 0:09:01]} 9. d3 {[%emt 0:00:46]} Be6 {[%emt 0:05:30]} 10. b4 {[%emt 0:00:29]} axb4 {[%emt 0:00:04]} 11. axb4 {[%emt 0:00:12]} Qd7 {[%emt 0:00:14]} 12. Ng5 {[%emt 0:01:13]} Bg8 {[%emt 0:00:11]} 13. b5 {[%emt 0:00:33]} Nd8 {[%emt 0:00:05]} 14. Bb2 {[%emt 0:02:28]} h6 {[%emt 0:01:07]} 15. Nf3 {[%emt 0:00:13]} Bf7 {[%emt 0:04:36]} 16. Ra1 {[%emt 0:05:14]} Rb8 {[%emt 0:06:34]} 17. Ba3 {[%emt 0:12:50]} (17. e3 $14) 17... b6 {[%emt 0:08:16]} 18. Nd2 {[%emt 0:05:45]} O-O {[%emt 0:01:39]} 19. e3 {[%emt 0:01:11]} Ne6 {[%emt 0:03:47]} 20. Qe2 {[%emt 0:08:02]} g5 {[%emt 0:06:09]} 21. Nb3 {[%emt 0:03:28]} Nc5 {[%emt 0:06:23]} ({Black should play} 21... Bh5 $11 22. f3 Rbe8) 22. Rab1 {[%emt 0:02:06]} (22. Nxc5 $14 dxc5 23. Bc6) 22... g4 {[%emt 0:08:43]} 23. d4 {[%emt 0:12:00]} Nxb3 {[%emt 0:04:40]} 24. Rxb3 {[%emt 0:00:03]} e4 {[%emt 0:00:10]} 25. Rb2 {[%emt 0:01:02]} Nh7 {[%emt 0:00:24]} 26. Rc1 {[%emt 0:02:21]} Ng5 {[%emt 0:00:16]} 27. c5 {[%emt 0:01:09]} dxc5 {[%emt 0:04:23]} 28. dxc5 {[%emt 0:00:25]} Qe7 {[%emt 0:00:13]} 29. Nb1 {[%emt 0:05:52]} Ra8 {[%emt 0:07:08]} 30. cxb6 {[%emt 0:01:02]} Rxa3 {[%emt 0:00:02]} 31. Rxc7 {[%emt 0:00:17]} (31. Nxa3 $11 {was the only way to keep the balance.} Nf3+ 32. Bxf3 gxf3 33. Qd2 Qxa3 34. bxc7 Bxb2 35. c8=Q Rxc8 36. Rxc8+ Kh7 37. Qe1) 31... Qd6 $2 {[%emt 0:03:52]} (31... Nf3+ $19 32. Bxf3 gxf3) 32. Nxa3 $11 {[%emt 0:04:11]} Qxa3 {[%emt 0:01:46]} (32... Bxb2 $11 {remains equal.} 33. Nc4 (33. Qxb2 $2 {leads to mate.} Qd1+ 34. Bf1 Nh3+ {[%mdl 64] Deflection} 35. Kh1 Qxf1#) 33... Bxc4 34. Qxc4+ Kh8) 33. Rbc2 {[%emt 0:02:06]} Be5 $1 {[%emt 0:01:29]} 34. Rc8 {[%emt 0:01:04]} Be6 {[%emt 0:00:40]} (34... Bb3 $5 {[%cal Rb3c2]}) 35. R8c5 {[%emt 0:08:00]} Rb8 {[%emt 0:01:52]} 36. Qd1 {[%emt 0:01:04]} Nf7 {[%emt 0:01:30]} 37. Rc6 {[%emt 0:01:01]} Bb3 {[%emt 0:04:19]} 38. Rc8+ {[%emt 0:00:58]} (38. Qc1 $14 {is more appropriate.} Qxc1+ 39. Rxc1) 38... Kg7 {[%emt 0:00:43]} 39. Rxb8 {[%emt 0:00:52]} Bxc2 {[%emt 0:00:23]} 40. Qxc2 {[%emt 0:00:36]} Bxb8 {[%emt 0:00:20]} 41. Qc8 {[%emt 0:02:17]} Qa1+ {[%emt 0:00:05]} 42. Bf1 {[%emt 0:00:50]} Qe5 {[%emt 0:00:04]} 43. Bc4 {[%emt 0:00:34]} Nd6 $2 {[%emt 0:02:23]} (43... Ng5 $11) 44. Qxb8 $2 {[%emt 0:01:15]} (44. Qg8+ {mates} Kf6 45. Qh8+ {[%mdl 64] Skewer, Deflection, Double Attack} Kg6 46. Qxe5 Nxc4 47. Qxb8 Na5 48. Qa8 h5 49. Qxa5) 44... Nxc4 {[%emt 0:00:03]} 45. Qa7+ {[%emt 0:00:17]} Kf6 $2 {[%emt 0:00:54]} (45... Kg6 $11) 46. b7 {[%emt 0:00:56]} Qd5 {[%emt 0:00:12]} 47. Qd4+ {[%emt 0:00:28]} ({And not} 47. b8=B Qd1+ 48. Kg2 Kg6 $11) ({Less strong is} 47. Qa6+ Kf7 $18) 47... Qe5 {[%emt 0:02:19]} 1-0

[Event "Ramat Gan Masters-A Winter 2023"]
[Site "Ramat Gan/ISR"]
[Date "2023.02.20"]
[Round "5.1"]
[White "Uritsky, Yonathan"]
[Black "Noy, Eyal"]
[Result "1-0"]
[Annotator "TA"]
[ECO "B51"]
[WhiteElo "2047"]
[BlackElo "2117"]
[PlyCount "47"]
[EventDate "2023.01.17"]
[EventType "swiss"]
[SourceTitle "playchess.com"]
[Source "ChessBase"]
[SourceQuality "1"]
[TimeControl "5400+30"]

{[%evp 9,47,16,15,20,21,15,60,60,71,73,68,61,51,64,117,106,114,130,123,105,423,376,400,357,1725,720,1626,1096,1044,971,1161,1027,1026,1010,29996,29997,29997,29998,29998,29999]} 1. e4 {[%emt 0:00:01]} c5 {[%emt 0:15:09]} 2. Nf3 {[%emt 0:00:18]} d6 {[%emt 0:02:16]} 3. Bb5+ {[%emt 0:00:06]} Nd7 {[%emt 0:00:08]} 4. O-O {[%emt 0:00:12]} a6 {[%emt 0:00:10]} 5. Bd3 {[%emt 0:00:06]} Ngf6 {[%emt 0:00:15]} 6. c3 {[%emt 0:00:07] B51: Sicilian: Moscow Variation (3 Bb5+) without 3...Bd7.} b5 {[%emt 0:00:15]} 7. a4 {[%emt 0:00:10]} c4 {[%emt 0:00:26]} 8. Be2 {[%emt 0:01:44] White is slightly better.} Bb7 {[%emt 0:00:37] [#]} 9. axb5 $1 {[%emt 0:02:13]} axb5 {[%emt 0:00:25]} ({Less strong is} 9... Bxe4 10. bxa6 (10. Bxc4 axb5 {[%mdl 64] Discovered Attack} 11. Rxa8 Qxa8 $11) 10... Qc8 11. d3 Bxf3 12. Bxf3 (12. gxf3 Rxa6 13. Rxa6 Qxa6 $16) 12... Rxa6 13. Rxa6 Qxa6 14. dxc4) 10. Rxa8 {[%emt 0:00:09]} Bxa8 {[%emt 0:08:18]} 11. Na3 {[%emt 0:03:02]} Nxe4 {[%emt 0:01:44]} ({Better is} 11... Qb8 $14) 12. Nxb5 $16 {[%emt 0:01:03]} d5 {[%emt 0:01:24] [#]} 13. d3 $146 {[%emt 0:01:34]} ({Predecessor:} 13. b3 cxb3 14. Qxb3 e6 15. Ba3 Ndc5 16. Qa2 Be7 17. d3 Nd6 18. Bxc5 Nxb5 19. Qa4 {1-0 Ostrovskiy,A (2453)-Yoo,C (2426) Charlotte CCCSA Spring GM 2019 (9)}) 13... cxd3 {[%emt 0:00:14]} 14. Bxd3 {[%emt 0:00:02] [#] Black must now prevent Bf4.} ({Don't take} 14. Qxd3 e5 $14) 14... g6 $2 {[%emt 0:04:47][%mdl 8192]} (14... e5 $16) 15. Bf4 {[%emt 0:04:01] Threatens to win with Nc7+.} e5 {[%emt 0:25:36]} 16. Nxe5 {[%emt 0:00:35]} ({Not} 16. Bxe5 Nxe5 17. Nxe5 Bg7 $16) 16... Qf6 $2 {[%emt 0:12:10]} (16... Nxe5 17. Bxe5 f6 18. Nc7+ Ke7) 17. Nc7+ {[%emt 0:04:12]} (17. Qa4 $142 Qd8 18. Nxd7 Kxd7 19. Bxe4) 17... Ke7 {[%emt 0:03:15]} 18. Nxd7 {[%emt 0:01:56]} Qxf4 {[%emt 0:03:02]} 19. Nxa8 {[%emt 0:00:24]} Kxd7 {[%emt 0:00:12]} 20. Bxe4 {[%emt 0:01:05]} Qxe4 {[%emt 0:00:11]} 21. Re1 {[%emt 0:00:06]} Qf5 {[%emt 0:03:54]} 22. Qa4+ {[%emt 0:00:04] White mates.} Kd6 {[%emt 0:00:46]} 23. Qa6+ {[%emt 0:00:08]} Kd7 {[%emt 0:00:32]} 24. Qb7+ {[%emt 0:00:06] Black got outplayed after the opening.   Weighted Error Value: White=0.11 (very precise) /Black=0.81} 1-0